bitfinex/quotes_ETHUSD_20240817
["timestamp","ask_amount","ask_price","bid_price","bid_amount"]
[1723892130174,4.55005071,2602.5,2601.8,3.4326]
[1723892130344,3.3442792,2602.5,2601.8,3.4326]
[1723892130874,3.3442792,2602.5,2601.9,2.88249]
[1723892131422,0.4623692,2602.5,2602.0,4.20838]
[1723892131628,6.37932151,2602.6,2602.0,4.20838]
[1723892131876,2.2918,2602.6,2602.0,4.20838]
[1723892132071,2.2918,2602.6,2602.0,9.44669]
[1723892132276,2.2918,2602.6,2602.0,6.56431]
[1723892133041,5.17356,2602.6,2602.0,6.56431]
[1723892133226,6.65557726,2602.6,2602.0,6.56431]
[1723892135292,2.88184,2602.5,2602.0,2.356]
[1723892138366,2.88202,2602.4,2602.0,2.356]
[1723892139956,1.326,2602.2,2601.5,2.4383]
[1723892140163,2.2934,2602.0,2601.5,2.4383]
[1723892140397,2.88236,2602.1,2601.5,2.4383]
[1723892140763,2.8824,2602.0,2601.5,2.4383]
[1723892140964,2.88236,2602.1,2601.5,2.4383]
[1723892141165,2.88236,2602.1,2601.6,1.326]
[1723892141956,2.88209,2602.3,2601.9,2.4383]
[1723892142185,2.88219,2602.2,2601.9,2.4383]
[1723892142401,2.88209,2602.3,2601.9,2.4383]
[1723892144416,5.34318864,2602.5,2602.0,0.55]
[1723892146686,2.46134864,2602.5,2602.0,0.55]
[1723892147217,5.34322864,2602.5,2602.0,0.55]
[1723892147370,2.88188,2602.5,2602.0,0.55]
[1723892147802,2.88195,2602.4,2602.0,0.55]
[1723892148123,2.88195,2602.4,2601.9,4.296401]
[1723892148124,2.88195,2602.4,2601.9,3.7643]
[1723892148425,2.2934,2602.3,2601.7,2.4383]
[1723892148628,2.88223,2602.2,2601.7,2.4383]
[1723892155908,2.88223,2602.2,2601.8,1.326]
[1723892156410,5.76398,2602.4,2601.8,1.326]
[1723892156614,2.88206,2602.3,2601.8,1.326]
[1723892158015,2.88195,2602.4,2601.8,4.20861]
[1723892158215,4.08772151,2602.4,2601.9,2.4005]
[1723892159015,2.88195,2602.4,2601.9,2.4005]
[1723892159248,4.08772151,2602.4,2601.9,2.4005]
[1723892160559,1.20577151,2602.4,2602.1,2.4005]
[1723892160725,1.20577151,2602.4,2601.9,3.1034986]
[1723892160726,1.20577151,2602.3,2601.9,3.1034986]
[1723892160927,1.20577151,2602.4,2601.9,2.4005]
[1723892161260,1.20577151,2602.2,2601.9,2.4005]
[1723892161481,1.20577151,2602.3,2601.9,2.4005]
[1723892161982,2.88219,2602.2,2601.9,2.4005]
[1723892162280,4.08796151,2602.2,2601.9,2.4005]
[1723892162450,2.88219,2602.2,2601.9,2.4005]
[1723892162961,2.88219,2602.2,2601.7,2.4005]
[1723892162962,1.20706673,2602.1,2601.7,2.4005]
[1723892163477,2.01038463,2602.1,2601.7,2.4005]
[1723892163636,1.20706673,2601.9,2601.5,3.7265]
[1723892164466,4.08947673,2602.0,2601.5,3.7265]
[1723892164669,5.34183854,2602.0,2601.5,3.7265]
[1723892165336,4.08947673,2602.0,2601.5,3.7265]
[1723892168189,4.08947673,2602.0,2601.5,6.60943]
[1723892168601,1.20706673,2602.0,2601.7,1.326]
[1723892172627,4.49172231,2602.1,2601.7,1.326]
[1723892172628,1.20706673,2601.9,2601.7,1.326]
[1723892172790,1.20706673,2602.0,2601.7,1.326]
[1723892173488,4.49172231,2602.1,2601.7,1.326]
[1723892173489,1.20706673,2601.9,2601.7,1.326]
[1723892173690,1.20706673,2602.0,2601.7,1.326]
[1723892174189,1.20706673,2601.9,2601.7,1.326]
[1723892174579,1.20706673,2602.0,2601.7,1.326]
[1723892175993,1.20706673,2601.9,2601.7,1.326]
[1723892176233,1.20706673,2601.9,2601.5,2.4005]
[1723892176234,1.20706673,2601.9,2601.5,3.7265]
[1723892176434,1.20706673,2601.9,2601.5,2.4005]
[1723892176634,1.20706673,2601.8,2601.5,2.4005]
[1723892176986,1.20706673,2601.7,2601.3,2.4707]
[1723892178437,4.08968673,2601.8,2601.3,2.4707]
[1723892180169,1.20706673,2601.8,2601.3,5.35386]
[1723892180308,1.20706673,2601.9,2601.3,6.177565]
[1723892180507,1.20706673,2601.8,2601.3,6.177565]
[1723892181037,1.20706673,2601.8,2601.4,1.326]
[1723892183614,1.20706673,2601.7,2601.4,1.326]
[1723892184017,1.20706673,2601.8,2601.4,1.326]
[1723892184162,1.20706673,2601.7,2601.4,1.326]
[1723892184676,4.08968673,2601.8,2601.4,1.326]
[1723892184871,4.08995673,2601.6,2601.0,2.88345]
[1723892185092,1.20706673,2601.5,2601.1,2.4707]
[1723892185299,4.08995673,2601.6,2601.1,2.4707]
[1723892185500,1.20706673,2601.6,2601.1,2.4707]
[1723892185689,1.20706673,2601.6,2601.1,5.35407]
[1723892185899,7.68656898,2601.8,2601.1,5.35407]
[1723892185900,1.20706673,2601.7,2601.1,3.427049]
[1723892186105,1.20706673,2601.7,2601.3,2.4707]
[1723892187612,1.20706673,2601.6,2601.3,2.4707]
[1723892187827,4.49204231,2601.8,2601.3,2.4707]
[1723892187828,1.20706673,2601.7,2601.3,2.4707]
[1723892192712,1.20706673,2601.7,2601.3,6.67979]
[1723892192914,1.20706673,2601.8,2601.3,6.67979]
[1723892193827,1.20706673,2601.8,2601.3,4.20909]
[1723892194029,1.20706673,2601.8,2601.4,2.4707]
[1723892194192,1.20706673,2601.9,2601.4,2.4707]
[1723892194884,4.08959673,2601.9,2601.4,2.4707]
[1723892195632,1.20706673,2601.9,2601.6,2.2559]
[1723892198395,1.20706673,2601.8,2601.6,2.2559]
[1723892199098,1.20706673,2601.8,2601.5,1.326]
[1723892199099,1.20706673,2601.8,2601.5,2.2559]
[1723892199441,1.20706673,2601.8,2601.5,2.902388]
[1723892199591,1.20706673,2601.9,2601.5,2.902388]
[1723892199937,1.20706673,2601.9,2601.5,4.228388]
[1723892200748,1.20706673,2601.8,2601.5,2.2559]
[1723892201045,1.20706673,2601.9,2601.5,2.2559]
[1723892201494,1.20706673,2601.8,2601.5,2.2559]
[1723892201936,1.20706673,2601.9,2601.5,3.5819]
[1723892202797,1.20706673,2601.9,2601.5,7.111338]
[1723892205114,1.20706673,2601.8,2601.5,2.2559]
[1723892205323,1.20706673,2601.9,2601.5,2.2559]
[1723892205719,1.20706673,2601.7,2601.5,2.2559]
[1723892205936,1.20706673,2601.8,2601.5,2.2559]
[1723892206251,1.20706673,2601.7,2601.5,2.2559]
[1723892206544,1.20706673,2601.8,2601.5,2.2559]
[1723892206752,1.20706673,2601.7,2601.5,2.2559]
[1723892206921,4.49236231,2601.6,2601.2,2.2559]
[1723892207121,1.20679098,2601.6,2601.2,3.5819]
[1723892207341,1.97780153,2601.6,2601.2,2.2559]
[1723892207535,1.20679098,2601.5,2601.2,2.2559]
[1723892209136,4.49223231,2601.7,2601.2,2.2559]
[1723892209137,1.20679098,2601.6,2601.2,2.2559]
[1723892210044,1.20679098,2601.5,2601.2,2.2559]
[1723892210283,1.20679098,2601.6,2601.2,2.2559]
[1723892210971,1.20679098,2601.5,2601.2,2.2559]
[1723892211127,1.60942231,2601.6,2601.2,2.2559]
[1723892211128,1.20679098,2601.6,2601.2,2.2559]
[1723892212029,4.49216231,2601.7,2601.2,2.2559]
[1723892212030,1.20679098,2601.5,2601.2,2.2559]
[1723892215059,1.20679098,2601.5,2601.2,3.5819]
[1723892215462,1.20679098,2601.5,2601.3,2.3559]
[1723892215963,1.20679098,2601.6,2601.3,2.3559]
[1723892217270,1.20679098,2601.5,2601.3,2.3559]
[1723892217439,1.20679098,2601.6,2601.3,2.3559]
[1723892218037,1.20679098,2601.6,2601.4,2.3559]
[1723892218243,2.01129646,2601.9,2601.4,2.3559]
[1723892218244,1.20679098,2601.8,2601.5,2.3559]
[1723892218937,1.20679098,2601.7,2601.5,5.23884]
[1723892219137,1.20679098,2601.8,2601.5,5.895327]
[1723892222040,1.20679098,2601.9,2601.7,2.3559]
[1723892222261,1.20679098,2601.9,2601.7,6.56462]
[1723892222682,1.20679098,2601.9,2601.7,5.23862]
[1723892222980,1.20679098,2601.8,2601.5,4.20887]
[1723892223200,1.20679098,2601.8,2601.5,6.56477]
[1723892223885,1.20679098,2601.8,2601.5,2.3559]
[1723892224078,1.20679098,2601.7,2601.5,2.3559]
[1723892224385,1.20679098,2601.8,2601.5,2.3559]
[1723892224547,1.20679098,2601.7,2601.5,2.3559]
[1723892224879,1.20679098,2601.8,2601.5,2.3559]
[1723892225656,4.57223782,2601.8,2601.2,2.3647]
[1723892225856,1.20679098,2601.6,2601.2,3.6907]
[1723892226060,1.20679098,2601.6,2601.4,1.326]
[1723892226255,1.20679098,2601.6,2601.5,2.3647]
[1723892226456,1.20679098,2601.7,2601.5,2.3647]
[1723892226682,1.20679098,2601.6,2601.5,2.3647]
[1723892226886,1.20679098,2601.7,2601.5,2.3647]
[1723892228655,2.88297,2601.5,2601.2,2.3647]
[1723892228852,1.20660375,2601.4,2601.2,2.3647]
[1723892229292,1.20660375,2601.3,2601.2,2.3647]
[1723892232528,1.20660375,2601.4,2601.2,2.3647]
[1723892232733,1.20660375,2601.3,2601.0,2.3647]
[1723892232915,1.20660375,2601.4,2601.0,5.24819]
[1723892233234,1.20660375,2601.4,2601.0,2.3647]
[1723892233736,1.20660375,2601.4,2600.7,4.20983]
[1723892233737,1.20660375,2601.3,2600.7,4.20983]
[1723892233944,1.20660375,2601.3,2600.8,2.3647]
[1723892234238,1.20660375,2601.2,2600.8,2.3647]
[1723892234437,1.20660375,2601.1,2600.8,2.3647]
[1723892235105,1.20660375,2601.2,2600.8,2.3647]
[1723892236122,1.20660375,2601.3,2600.8,2.3647]
[1723892236320,1.20660375,2601.2,2600.8,2.3647]
[1723892238712,4.98676818,2601.3,2600.8,2.3647]
[1723892240044,2.10356818,2601.3,2600.8,2.3647]
[1723892240196,1.20660375,2601.3,2600.8,3.6907]
[1723892240751,2.88309,2601.4,2600.8,3.6907]
[1723892240752,4.08969375,2601.4,2600.8,3.6907]
[1723892240913,1.20660375,2601.3,2600.8,3.6907]
[1723892241941,6.02620479,2601.4,2600.8,3.6907]
[1723892242146,2.8832,2601.3,2600.8,3.6907]
[1723892242523,4.08980375,2601.3,2600.8,3.6907]
[1723892242726,2.88328,2601.2,2600.8,2.3647]
[1723892243434,2.88328,2601.2,2600.8,1.553127]
[1723892244410,2.25842473,2601.3,2600.8,1.553127]
[1723892246043,5.14161473,2601.3,2600.8,1.553127]
[1723892246217,0.77369665,2601.2,2600.8,1.553127]
[1723892247123,2.88351,2601.0,2600.8,1.553127]
[1723892248346,4.8636804,2601.2,2600.8,1.553127]
[1723892248553,2.8834,2601.1,2600.8,1.553127]
[1723892250568,2.88352,2601.0,2600.6,2.467]
[1723892250727,3.65822804,2601.0,2600.6,2.467]
[1723892250924,0.77470804,2601.0,2600.6,2.467]
[1723892252734,0.48647218,2600.9,2600.6,2.467]
[1723892255264,0.77470804,2601.0,2600.6,2.467]
[1723892256665,3.65821804,2601.0,2600.6,2.467]
[1723892257770,2.88362,2600.9,2600.5,0.1284606]
[1723892257925,0.6541838,2600.8,2600.5,0.1284606]
[1723892260829,2.88351,2601.0,2600.5,0.1284606]
[1723892268055,1.20660375,2601.1,2600.5,3.0124906]
[1723892268358,4.09004375,2601.1,2600.5,3.0124906]
[1723892269291,1.20660375,2601.0,2600.5,3.0124906]
[1723892269495,0.56988488,2600.9,2600.5,3.0124906]
[1723892271272,1.20660375,2601.0,2600.6,2.88394]
[1723892271475,1.20660375,2601.1,2600.7,2.4334]
[1723892271664,4.8636304,2601.2,2600.7,2.4334]
[1723892271866,1.20660375,2601.5,2601.3,2.4334]
[1723892272103,1.20660375,2601.4,2601.3,2.4334]
[1723892272606,1.20660375,2601.4,2601.0,5.31682]
[1723892273903,1.20660375,2601.3,2601.0,5.31689]
[1723892274063,1.20660375,2601.4,2601.1,2.88336]
[1723892274261,1.20660375,2601.5,2601.2,2.3175]
[1723892274465,1.68887621,2601.5,2601.2,2.3175]
[1723892275421,1.20660375,2601.4,2601.2,2.3175]
[1723892275703,1.68887621,2601.5,2601.2,2.3175]
[1723892275879,1.20660375,2601.4,2601.2,2.3175]
[1723892276080,1.94531725,2601.4,2601.2,2.3175]
[1723892277066,1.94531725,2601.4,2600.9,6.52702]
[1723892277470,1.94531725,2601.4,2600.9,9.41054]
[1723892277671,1.94531725,2601.4,2600.9,6.52702]
[1723892277877,1.20660375,2601.4,2601.0,2.88349]
[1723892278075,1.20660375,2601.4,2601.0,2.3175]
[1723892278282,1.20660375,2601.5,2601.1,2.88335]
[1723892278718,1.60880501,2601.6,2601.1,4.20935]
[1723892278719,1.20660375,2601.6,2601.1,4.20935]
[1723892279019,1.20660375,2601.6,2601.3,2.88315]
[1723892279389,1.20660375,2601.6,2601.2,2.3175]
[1723892279729,0.28154088,2601.5,2601.2,2.3175]
[1723892280224,1.20660375,2601.6,2601.2,2.3175]
[1723892280422,1.20660375,2601.6,2601.2,5.20076]
[1723892281225,1.20660375,2601.6,2601.2,2.3175]
[1723892282434,1.20660375,2601.6,2601.2,5.20076]
[1723892282783,1.20660375,2601.6,2601.2,2.3175]
[1723892282988,0.28154088,2601.5,2601.2,2.3175]
[1723892284543,1.20660375,2601.6,2601.2,2.3175]
[1723892284887,1.20660375,2601.7,2601.2,2.3175]
[1723892287227,1.20660375,2601.6,2601.2,2.3175]
[1723892288134,4.08936375,2601.7,2601.2,2.3175]
[1723892288446,5.84386962,2601.7,2601.2,2.3175]
[1723892288654,2.96110962,2601.7,2601.2,2.3175]
[1723892290409,5.84386962,2601.7,2601.2,2.3175]
[1723892290804,1.20660375,2601.6,2601.2,2.3175]
[1723892291020,0.74526746,2601.5,2601.2,2.3175]
[1723892293468,5.84386962,2601.7,2601.2,2.3175]
[1723892293960,2.96110962,2601.7,2601.2,2.3175]
[1723892294610,5.84387962,2601.7,2601.2,2.3175]
[1723892295955,1.75450587,2601.7,2601.2,2.3175]
[1723892298573,4.63725587,2601.7,2601.2,2.3175]
[1723892298857,1.16091996,2601.6,2601.2,2.3175]
[1723892299239,2.88296,2601.5,2601.2,2.3175]
[1723892299432,4.04382996,2601.6,2601.2,2.3175]
[1723892299826,6.92676996,2601.6,2601.2,2.3175]
[1723892300030,0.81333737,2601.5,2601.2,2.3175]
[1723892300755,5.76629,2601.4,2601.0,2.3299]
[1723892301054,2.88317,2601.3,2601.0,2.3299]
[1723892301441,2.88313,2601.4,2600.8,2.3299]
[1723892301442,2.88328,2601.2,2600.8,2.3299]
[1723892301761,2.88328,2601.2,2600.5,3.0124906]
[1723892301762,2.88341,2601.1,2600.6,2.3299]
[1723892302220,3.70812318,2601.1,2600.6,2.3299]
[1723892303463,3.70812318,2601.1,2600.7,1.326]
[1723892304457,3.75491675,2601.3,2600.7,1.326]
[1723892304458,4.37817675,2601.3,2600.7,1.326]
[1723892304856,2.88331,2601.2,2600.7,1.326]
[1723892305560,2.88331,2601.2,2600.8,2.3299]
[1723892307925,4.08991375,2601.2,2600.8,2.3299]
[1723892308140,0.39154451,2601.1,2600.8,2.3299]
[1723892309341,2.88331,2601.2,2600.8,2.3299]
[1723892315441,4.08991375,2601.2,2600.8,2.3299]
[1723892315845,2.88331,2601.2,2600.8,2.3299]
[1723892316285,4.08991375,2601.2,2600.8,2.3299]
[1723892317552,1.20660375,2601.1,2600.8,2.3299]
[1723892317891,1.80530693,2601.1,2600.8,2.3299]
[1723892318751,0.59870318,2601.1,2600.8,2.3299]
[1723892318978,4.08991375,2601.2,2600.8,2.3299]
[1723892319580,1.20660375,2601.1,2600.8,2.3299]
[1723892319964,4.08991375,2601.2,2600.8,2.3299]
[1723892320959,1.20660375,2601.1,2600.8,2.3299]
[1723892321378,4.08991375,2601.2,2600.8,2.3299]
[1723892321698,5.80199125,2601.2,2600.8,2.3299]
[1723892322200,1.20660375,2601.1,2600.8,2.3299]
[1723892322353,5.80199125,2601.2,2600.8,2.3299]
[1723892323364,1.20660375,2601.1,2600.8,2.3299]
[1723892323876,5.80199125,2601.2,2600.8,2.3299]
[1723892324875,1.20660375,2601.3,2601.0,2.4169]
[1723892325080,1.20660375,2601.2,2601.0,2.4169]
[1723892325403,1.20660375,2601.2,2600.8,2.4169]
[1723892325600,5.40474163,2601.2,2600.8,2.4169]
[1723892327110,1.20660375,2601.3,2600.8,2.4169]
[1723892327277,1.20660375,2601.3,2600.9,2.88358]
[1723892327490,1.20660375,2601.3,2601.0,2.4169]
[1723892328569,8.65660375,2601.4,2601.0,2.4169]
[1723892329081,1.20660375,2601.3,2601.0,2.4169]
[1723892336329,1.20660375,2601.3,2600.8,2.88364]
[1723892336330,1.20660375,2601.2,2600.8,2.88364]
[1723892337631,1.20660375,2601.2,2600.9,2.4351]
[1723892339127,1.20660375,2601.2,2600.9,5.31871]
[1723892339442,1.20660375,2601.2,2600.9,2.4351]
[1723892339956,1.20660375,2601.2,2600.9,5.3187]
[1723892340300,1.20660375,2601.3,2601.0,5.7669]
[1723892340548,1.20660375,2601.4,2601.1,2.4351]
[1723892340999,1.60880501,2601.5,2601.1,2.4351]
[1723892341000,1.20660375,2601.3,2601.1,2.4351]
[1723892341402,1.20660375,2601.4,2601.1,5.31848]
[1723892341648,1.20660375,2601.5,2601.1,5.31848]
[1723892342083,1.20660375,2601.5,2601.1,2.4351]
[1723892343286,1.20660375,2601.5,2601.1,3.154551]
[1723892343992,1.20660375,2601.4,2601.1,2.4351]
[1723892344139,1.60880501,2601.5,2601.1,2.4351]
[1723892344140,1.20660375,2601.3,2601.1,2.030324]
[1723892344690,1.20660375,2601.3,2600.8,2.88369]
[1723892344991,1.20660375,2601.2,2600.9,0.55]
[1723892345579,1.20660375,2601.2,2600.8,0.55]
[1723892346703,1.20660375,2601.2,2600.7,1.326]
[1723892347009,2.4402,2601.1,2600.6,4.89017469]
[1723892347161,2.4402,2601.1,2600.7,1.876]
[1723892347681,1.20660375,2601.2,2600.7,0.55]
[1723892347864,1.97743441,2601.2,2600.7,1.876]
[1723892348759,1.97743441,2601.2,2600.7,4.75977]
[1723892348987,1.20660375,2601.2,2600.9,1.326]
[1723892349506,4.49197501,2601.3,2600.9,1.326]
[1723892349507,1.20660375,2601.3,2600.9,1.326]
[1723892350872,1.20660375,2601.3,2601.0,2.4351]
[1723892351083,1.20660375,2601.3,2601.0,5.31859]
[1723892351264,1.20660375,2601.3,2601.1,1.326]
[1723892351607,1.20660375,2601.4,2601.3,2.88317]
[1723892351966,1.20660375,2601.4,2601.3,3.43317]
[1723892352421,1.20660375,2601.4,2601.3,5.59892552]
[1723892352564,1.20660375,2601.5,2601.3,5.59892552]
[1723892352906,1.20660375,2601.6,2601.3,5.59892552]
[1723892353627,1.60880501,2601.7,2601.3,5.59892552]
[1723892353628,1.20660375,2601.7,2601.3,5.59892552]
[1723892353776,1.20660375,2601.6,2601.5,1.326]
[1723892353973,1.20660375,2601.7,2601.5,4.20895]
[1723892354323,1.20660375,2601.7,2601.5,5.04870552]
[1723892354623,1.20660375,2601.8,2601.5,5.04870552]
[1723892355436,1.20660375,2601.9,2601.7,1.326]
[1723892355729,2.81395292,2602.4,2602.2,2.2527]
[1723892355730,1.20660375,2602.3,2602.2,2.2527]
[1723892355929,4.67241244,2602.8,2602.2,4.1287]
[1723892355930,1.20660375,2602.6,2602.2,4.1287]
[1723892356074,1.20660375,2602.6,2602.5,1.326]
[1723892356274,2.97696585,2602.8,2602.5,1.326]
[1723892356275,1.20660375,2602.8,2602.5,4.20783]
[1723892356474,1.20660375,2602.8,2602.5,4.75783]
[1723892356713,1.20660375,2603.0,2602.7,1.326]
[1723892356946,1.69575905,2603.0,2602.7,1.326]
[1723892357520,0.4891553,2603.0,2602.7,1.326]
[1723892358478,0.4891553,2603.0,2602.5,4.20783]
[1723892358672,0.45769591,2602.9,2602.5,1.326]
[1723892368162,0.45769591,2602.9,2602.3,1.326]
[1723892368163,2.88152,2602.8,2602.3,1.326]
[1723892370056,5.14148,2602.9,2602.3,1.326]
[1723892370358,2.88148,2602.9,2602.3,1.326]
[1723892372943,5.76298,2602.9,2602.3,1.326]
[1723892373133,0.576298,2602.8,2602.3,1.326]
[1723892377029,3.457828,2602.8,2602.3,1.326]
[1723892377229,3.457828,2602.8,2602.2,2.2527]
[1723892377538,5.21592,2602.7,2602.1,4.20824]
[1723892377727,0.8673748,2602.6,2602.2,0.55]
[1723892380470,5.21592,2602.7,2602.2,0.55]
[1723892381662,5.21592,2602.7,2602.2,3.43217]
[1723892382666,0.576298,2602.8,2602.2,3.43217]
[1723892382858,0.576298,2602.8,2602.3,1.326]
[1723892383671,0.576298,2602.8,2602.0,5.17382]
[1723892383981,2.88228,2602.1,2601.6,1.326]
[1723892384296,5.13728,2602.1,2601.6,1.326]
[1723892385751,2.88242,2602.0,2601.5,2.2915]
[1723892385963,5.13728,2602.1,2601.5,3.6175]
[1723892386161,0.513728,2602.0,2601.5,3.6175]
[1723892388745,0.513728,2602.0,2601.3,4.20916]
[1723892389043,2.88258,2601.9,2601.3,4.20916]
[1723892390244,2.88258,2601.9,2601.5,1.326]
[1723892392582,0.513728,2602.0,2601.5,1.326]
[1723892393089,12.58728,2602.1,2601.5,1.326]
[1723892393384,15.46966,2602.1,2601.5,1.326]
[1723892394803,12.58728,2602.1,2601.5,1.326]
[1723892395147,2.88242,2602.0,2601.5,1.326]
[1723892395384,1.54697,2601.9,2601.5,1.326]
[1723892397289,12.58728,2602.1,2601.5,1.326]
[1723892397589,10.33228,2602.1,2601.5,3.7795]
[1723892398374,10.33228,2602.1,2601.7,1.326]
[1723892398576,7.45,2602.1,2601.8,2.4535]
[1723892398976,7.45,2602.1,2601.6,2.88277]
[1723892399173,8.712431,2602.1,2601.6,2.88277]
[1723892399375,11.594731,2602.1,2601.5,2.4535]
[1723892400205,4.144731,2602.1,2601.5,2.4535]
[1723892400521,2.2922,2602.0,2601.4,4.20898]
[1723892400696,2.7066731,2602.0,2601.4,4.20898]
[1723892400873,5.5891431,2602.0,2601.4,4.20898]
[1723892401078,5.5891431,2602.0,2601.4,1.326]
[1723892401079,2.88253,2601.9,2601.4,1.326]
[1723892401280,3.72967431,2601.9,2601.4,1.326]
[1723892401616,2.88253,2601.9,2601.4,1.326]
[1723892402060,2.88253,2601.9,2601.0,5.88346]
[1723892402061,2.88296,2601.5,2601.0,2.4535]
[1723892402179,5.17516,2601.5,2600.9,4.2096]
[1723892402381,5.17516,2601.5,2600.9,4.63056]
[1723892402826,5.17516,2601.5,2600.9,1.74696]
[1723892403319,2.88283,2601.7,2601.1,1.326]
[1723892403710,9.7422,2601.8,2601.1,1.326]
[1723892403909,15.41332541,2601.8,2601.2,2.88327]
[1723892404595,15.41332541,2601.8,2601.0,2.88342]
[1723892404596,2.88274,2601.7,2601.0,2.88342]
[1723892404800,5.76556,2601.7,2601.1,1.876]
[1723892405091,3.88273525,2601.7,2601.1,1.876]
[1723892405529,2.88285,2601.6,2601.0,4.20942]
[1723892408544,3.88273525,2601.7,2601.0,7.09284]
[1723892408740,2.88274,2601.7,2601.2,1.326]
[1723892409140,2.88274,2601.7,2601.2,3.749]
[1723892410061,2.88274,2601.7,2601.2,6.63227]
[1723892412569,4.08200101,2601.7,2601.2,1.326]
[1723892412753,2.88291,2601.6,2601.0,6.63241]
[1723892413068,4.08217101,2601.6,2601.0,6.63241]
[1723892413383,2.88291,2601.6,2601.0,6.63241]
[1723892413546,4.08217101,2601.6,2601.0,6.63241]
[1723892414563,1.19926101,2601.5,2601.0,6.63241]
[1723892414781,4.48192468,2601.6,2601.0,6.63241]
[1723892414782,4.08217101,2601.6,2601.0,6.63241]
[1723892415137,1.19926101,2601.5,2601.0,6.63241]
[1723892415381,4.08217101,2601.6,2601.0,6.63241]
[1723892415674,2.88313,2601.4,2600.8,5.36058]
[1723892415881,2.88313,2601.4,2601.0,1.326]
[1723892421620,3.56606101,2601.5,2601.0,1.326]
[1723892421921,6.58681805,2601.6,2601.1,2.4769]
[1723892422809,1.19926101,2601.5,2601.1,2.4769]
[1723892423119,9.46974805,2601.6,2601.1,2.4769]
[1723892423523,1.19926101,2601.5,2601.1,2.4769]
[1723892423822,9.46974805,2601.6,2601.1,2.4769]
[1723892424489,1.19926101,2601.5,2601.1,2.4769]
[1723892426134,4.08222101,2601.5,2601.0,1.326]
[1723892426428,3.56606101,2601.4,2600.9,2.4769]
[1723892426628,6.44912101,2601.4,2600.9,2.4769]
[1723892426785,6.44912101,2601.4,2600.8,2.88364]
[1723892426986,6.44912101,2601.4,2600.8,4.20964]
[1723892427187,3.56606101,2601.4,2600.9,2.88361]
[1723892427423,1.19926101,2601.5,2600.9,2.88361]
[1723892427928,1.19926101,2601.5,2601.0,1.326]
[1723892430090,4.08221101,2601.5,2601.0,1.326]
[1723892430431,1.19926101,2601.5,2601.0,1.326]
[1723892431191,1.19926101,2601.5,2601.0,3.8029]
[1723892432033,4.08223101,2601.5,2601.0,3.8029]
[1723892433230,1.19926101,2601.4,2601.0,3.8029]
[1723892433935,1.19926101,2601.5,2601.0,7.4219164]
[1723892436441,1.19926101,2601.4,2601.0,7.4219164]
[1723892436756,4.48189468,2601.6,2601.0,7.4219164]
[1723892436757,1.19926101,2601.5,2601.0,7.4219164]
[1723892437962,3.61266101,2601.4,2601.0,0.7355164]
[1723892438274,3.61266101,2601.4,2600.9,2.88361]
[1723892438475,3.61266101,2601.4,2600.9,2.88354]
[1723892438679,1.19926101,2601.4,2600.9,2.88354]
[1723892439735,1.19926101,2601.4,2601.0,2.3185]
[1723892439935,1.19926101,2601.4,2601.0,6.528]
[1723892442075,1.19926101,2601.5,2601.0,6.528]
[1723892442286,1.19926101,2601.5,2601.2,1.326]
[1723892442492,8.64926101,2601.8,2601.5,2.88295]
[1723892443042,7.45,2601.8,2601.6,1.326]
[1723892443237,1.19926101,2601.9,2601.6,4.20884]
[1723892443493,1.19926101,2602.0,2601.8,1.326]
[1723892443661,1.19926101,2602.1,2601.9,0.652715]
[1723892443859,1.19926101,2602.2,2602.0,1.326]
[1723892444190,1.19926101,2602.3,2602.1,2.3185]
[1723892444548,1.19926101,2602.4,2602.1,2.3185]
[1723892444748,1.19926101,2602.3,2602.1,2.3185]
[1723892445193,1.19926101,2602.4,2602.1,2.3185]
[1723892446105,1.19926101,2602.5,2602.2,1.326]
[1723892446451,1.19926101,2602.6,2602.2,1.326]
[1723892446704,1.19926101,2602.5,2602.1,5.20069]
[1723892446846,1.47908858,2602.6,2602.1,5.20069]
[1723892447051,1.47908858,2602.6,2601.8,2.4387]
[1723892447052,6.34471101,2602.5,2601.8,2.4387]
[1723892447289,1.19926101,2602.3,2601.8,2.4387]
[1723892447504,1.19926101,2602.4,2601.9,1.326]
[1723892449550,4.08111101,2602.5,2601.9,1.326]
[1723892450156,1.19926101,2602.4,2601.9,1.326]
[1723892450851,1.19926101,2602.4,2601.9,4.20847]
[1723892451053,7.02409225,2602.6,2602.0,0.952976]
[1723892451054,1.19926101,2602.5,2602.0,0.952976]
[1723892451293,1.19926101,2602.5,2601.9,4.20847]
[1723892452185,6.34451101,2602.6,2601.9,4.20847]
[1723892452492,1.19926101,2602.5,2601.9,4.20847]
[1723892453373,9.22634101,2602.6,2601.9,4.20847]
[1723892453669,4.08111101,2602.5,2601.9,4.20847]
[1723892454000,2.88185,2602.5,2601.9,4.20847]
[1723892454364,7.64048767,2602.6,2602.0,2.4886]
[1723892454365,4.17772666,2602.6,2602.0,2.4886]
[1723892454672,2.88175,2602.6,2602.0,2.4886]
[1723892454852,4.08101101,2602.6,2602.0,2.4886]
[1723892455284,2.88175,2602.6,2602.0,2.4886]
[1723892457188,4.08101101,2602.6,2602.0,2.4886]
[1723892457360,2.88175,2602.6,2602.0,2.4886]
[1723892457561,2.88175,2602.6,2602.0,5.37098]
[1723892457762,2.88175,2602.6,2602.0,6.328921]
[1723892458803,2.88175,2602.6,2602.0,3.446541]
[1723892460913,4.08101101,2602.6,2602.0,2.4886]
[1723892461109,2.88206,2602.4,2601.8,2.4886]
[1723892461407,2.88236,2602.1,2601.6,1.326]
[1723892462991,2.88263,2601.8,2601.1,5.37191]
[1723892463177,2.88263,2601.8,2601.1,6.69791]
[1723892463479,2.88291,2601.6,2601.1,2.4886]
[1723892463805,2.88295,2601.5,2601.1,2.4886]
[1723892464099,2.88291,2601.6,2601.1,2.4886]
[1723892469937,2.88265,2601.8,2601.2,2.3973]
[1723892470083,4.08170101,2602.0,2601.3,2.88316]